[Event "NJSK 2026 Jeugd C"]
[Site "Helmond, Netherlands"]
[Date "2026.04.29"]
[Round "7.11"]
[White "Lalkota, Sai Pranav Tejas"]
[Black "Fu, Ziqing"]
[Result "1-0"]
[TimeControl "90min/40moves + 30sec/move"]
[WhiteTitle "-"]
[BlackTitle "-"]
[WhiteFideId "1087690"]
[BlackFideId "40109623"]
[WhiteElo "1830"]
[BlackElo "1810"]

1. c4 {[%clk 01:30:59]} {[%emt 00:00:01]} e5 {[%clk 01:30:05]} {[%emt
00:00:55]} 2. Nc3 {[%clk 01:31:23]} {[%emt 00:00:05]} Nf6 {[%clk 01:29:45]}
{[%emt 00:00:50]} 3. g3 {[%clk 01:31:46]} {[%emt 00:00:08]} d5 {[%clk
01:28:57]} {[%emt 00:01:17]} 4. cxd5 {[%clk 01:32:11]} {[%emt 00:00:06]} Nxd5
{[%clk 01:28:36]} {[%emt 00:00:51]} 5. Bg2 {[%clk 01:32:33]} {[%emt 00:00:07]}
Be6 {[%clk 01:28:16]} {[%emt 00:00:47]} 6. Nf3 {[%clk 01:32:20]} {[%emt
00:00:46]} Nc6 {[%clk 01:27:28]} {[%emt 00:01:17]} 7. d3 {[%clk 01:32:36]}
{[%emt 00:00:15]} Bb4 {[%clk 01:26:13]} {[%emt 00:01:45]} 8. Bd2 {[%clk
01:32:56]} {[%emt 00:00:10]} O-O {[%clk 01:25:33]} {[%emt 00:01:07]} 9. O-O
{[%clk 01:33:15]} {[%emt 00:00:13]} Re8 {[%clk 01:25:42]} {[%emt 00:00:21]} 10.
a3 {[%clk 01:32:45]} {[%emt 00:01:02]} Bd6 {[%clk 01:25:02]} {[%emt 00:01:08]}
11. b4 {[%clk 01:33:00]} {[%emt 00:00:17]} a6 {[%clk 01:24:58]} {[%emt
00:00:33]} 12. Rc1 {[%clk 01:31:36]} {[%emt 00:01:54]} h6 {[%clk 01:24:18]}
{[%emt 00:01:10]} 13. e4 {[%clk 01:31:20]} {[%emt 00:00:46]} Nf6 {[%clk
01:24:23]} {[%emt 00:00:24]} 14. h3 {[%clk 01:30:13]} {[%emt 00:01:39]} Qd7
{[%clk 01:24:03]} {[%emt 00:00:47]} 15. Kh2 {[%clk 01:30:34]} {[%emt 00:00:10]}
Rad8 {[%clk 01:24:14]} {[%emt 00:00:19]} 16. Ne2 {[%clk 01:30:27]} {[%emt
00:00:37]} Bf8 {[%clk 01:22:02]} {[%emt 00:02:41]} 17. Ne1 {[%clk 01:30:49]}
{[%emt 00:00:09]} Na7 {[%clk 01:18:32]} {[%emt 00:04:00]} 18. f4 {[%clk
01:31:06]} {[%emt 00:00:13]} exf4 {[%clk 01:17:09]} {[%emt 00:01:54]} 19. gxf4
{[%clk 01:31:32]} {[%emt 00:00:04]} Qc8 {[%clk 01:14:13]} {[%emt 00:03:25]} 20.
f5 {[%clk 01:31:44]} {[%emt 00:00:19]} Bd7 {[%clk 01:14:28]} {[%emt 00:00:15]}
21. Bf4 {[%clk 01:32:02]} {[%emt 00:00:12]} Bc6 {[%clk 01:14:11]} {[%emt
00:00:47]} 22. Qb3 {[%clk 01:32:05]} {[%emt 00:00:26]} Bd6 {[%clk 01:12:38]}
{[%emt 00:02:02]} 23. Bxd6 {[%clk 01:31:55]} {[%emt 00:00:41]} Rxd6 {[%clk
01:11:31]} {[%emt 00:01:37]} 24. Qb2 {[%clk 01:32:10]} {[%emt 00:00:15]} Rdd8
{[%clk 01:10:43]} {[%emt 00:01:19]} 25. Rg1 {[%clk 01:32:09]} {[%emt 00:00:31]}
Kh7 {[%clk 01:10:53]} {[%emt 00:00:19]} 26. Bf3 {[%clk 01:32:08]} {[%emt
00:00:31]} Qd7 {[%clk 01:07:52]} {[%emt 00:03:31]} 27. Ng3 {[%clk 01:29:29]}
{[%emt 00:03:10]} Qd4 {[%clk 01:06:48]} {[%emt 00:01:26]} 28. Qg2 {[%clk
01:28:23]} {[%emt 00:01:43]} Rg8 {[%clk 01:05:21]} {[%emt 00:01:56]} 29. Nh5
{[%clk 01:28:00]} {[%emt 00:00:54]} Nxh5 {[%clk 01:04:42]} {[%emt 00:01:09]} 30.
Bxh5 {[%clk 01:28:25]} {[%emt 00:00:06]} Qd6+ {[%clk 01:03:52]} {[%emt
00:01:17]} 31. Kh1 {[%clk 01:28:46]} {[%emt 00:00:12]} Qe7 {[%clk 01:04:05]}
{[%emt 00:00:16]} 32. Rd1 {[%clk 01:24:54]} {[%emt 00:04:23]} Nb5 {[%clk
01:04:05]} {[%emt 00:00:30]} 33. Nc2 {[%clk 01:25:06]} {[%emt 00:00:18]} Nc3
{[%clk 01:01:54]} {[%emt 00:02:40]} 34. Rdf1 {[%clk 01:24:21]} {[%emt
00:01:16]} Rxd3 {[%clk 00:58:40]} {[%emt 00:03:42]} 35. Ne1 {[%clk 01:18:17]}
{[%emt 00:06:36]} Rdd8 {[%clk 00:55:39]} {[%emt 00:03:31]} 36. Nf3 {[%clk
01:16:27]} {[%emt 00:02:20]} Bxe4 {[%clk 00:54:35]} {[%emt 00:01:35]} 37. h4
{[%clk 01:15:47]} {[%emt 00:01:10]} Nd5 {[%clk 00:54:01]} {[%emt 00:01:04]} 38.
Qg3 {[%clk 01:12:40]} {[%emt 00:03:37]} Ne3 {[%clk 00:53:21]} {[%emt 00:01:10]}
39. Re1 {[%clk 01:12:25]} {[%emt 00:00:45]} Nxf5 {[%clk 00:53:27]} {[%emt
00:00:23]} 40. Qf4 {[%clk 01:09:44]} {[%emt 00:03:11]} Bxf3+ {[%clk 00:53:33]}
{[%emt 00:00:23]} 41. Bxf3 {[%clk 01:10:04]} {[%emt 00:00:11]} Qxh4+ {[%clk
00:53:54]} {[%emt 00:00:09]} 42. Qxh4 {[%clk 01:10:28]} {[%emt 00:00:06]} Nxh4
{[%clk 00:54:17]} {[%emt 00:00:07]} 43. Bxb7 {[%clk 01:10:53]} {[%emt
00:00:05]} Rd3 {[%clk 00:54:18]} {[%emt 00:00:28]} 44. Be4+ {[%clk 01:11:17]}
{[%emt 00:00:07]} g6 {[%clk 00:54:07]} {[%emt 00:01:14]} 45. Bxd3 {[%clk
01:12:08]} {[%emt 00:00:06]} Nf3 {[%clk 00:54:24]} {[%emt 00:00:13]} 46. Re7
{[%clk 01:12:31]} {[%emt 00:00:07]} Nxg1 {[%clk 00:54:12]} {[%emt 00:00:42]} 47.
Rxf7+ {[%clk 01:12:55]} {[%emt 00:00:07]} Rg7 {[%clk 00:54:28]} {[%emt
00:00:13]} 48. Rxg7+ {[%clk 01:13:20]} {[%emt 00:00:05]} Kxg7 {[%clk 00:54:51]}
{[%emt 00:00:07]} 49. Kxg1 {[%clk 01:13:46]} {[%emt 00:00:04]} Kf7 {[%clk
00:55:03]} {[%emt 00:00:18]} 50. Bxa6 {[%clk 01:14:11]} {[%emt 00:00:05]} Ke7
{[%clk 00:55:23]} {[%emt 00:00:09]} 51. Bd3 {[%clk 01:14:35]} {[%emt 00:00:06]}
g5 {[%clk 00:55:18]} {[%emt 00:00:36]} 52. Kg2 {[%clk 01:14:25]} {[%emt
00:00:40]} Kd6 {[%clk 00:55:26]} {[%emt 00:00:22]} 53. Kf3 {[%clk 01:14:03]}
{[%emt 00:00:52]} h5 {[%clk 00:55:20]} {[%emt 00:00:36]} 54. Bg6 {[%clk
01:14:25]} {[%emt 00:00:08]} h4 {[%clk 00:55:29]} {[%emt 00:00:21]} 55. Bf5
{[%clk 01:09:58]} {[%emt 00:04:57]} c5 {[%clk 00:55:18]} {[%emt 00:00:41]} 56.
b5 {[%clk 01:10:12]} {[%emt 00:00:16]} c4 {[%clk 00:55:32]} {[%emt 00:00:16]}
57. Ke3 {[%clk 01:10:09]} {[%emt 00:00:32]} Kc5 {[%clk 00:55:29]} {[%emt
00:00:34]} 58. a4 {[%clk 01:10:33]} {[%emt 00:00:07]} Kd5 {[%clk 00:54:56]}
{[%emt 00:01:03]} 59. b6 {[%clk 01:10:54]} {[%emt 00:00:09]} Kc6 {[%clk
00:55:13]} {[%emt 00:00:12]} 60. a5 {[%clk 01:11:20]} {[%emt 00:00:04]} Kb7
{[%clk 00:54:29]} {[%emt 00:01:14]} 61. Kd4 {[%clk 01:11:44]} {[%emt 00:00:06]}
Ka6 {[%clk 00:53:56]} {[%emt 00:01:03]} 62. Kxc4 {[%clk 01:12:06]} {[%emt
00:00:08]} Kb7 {[%clk 00:54:11]} {[%emt 00:00:16]} 63. Kb5 {[%clk 01:12:31]}
{[%emt 00:00:05]} Kb8 {[%clk 00:54:34]} {[%emt 00:00:07]} 64. a6 {[%clk
01:12:55]} {[%emt 00:00:05]} Ka8 {[%clk 00:54:58]} {[%emt 00:00:05]} 65. a7
{[%clk 01:13:19]} {[%emt 00:00:06]} Kb7 {[%clk 00:54:59]} {[%emt 00:00:26]} 66.
Be4+ {[%clk 01:13:48]} {[%emt 00:00:05]} Kc8 {[%clk 00:54:59]} {[%emt
00:00:29]} 67. a8=Q+ {[%emt 00:00:10]} Kd7 {[%clk 00:54:59]} {[%emt 00:00:28]}
68. Qc6+ {[%clk 01:14:36]} {[%emt 00:00:05]} Kd8 {[%clk 00:54:57]} {[%emt
00:00:32]} 69. Qc7+ {[%clk 01:14:58]} {[%emt 00:00:08]} Ke8 {[%clk 00:54:58]}
{[%emt 00:00:26]} 70. Bg6+ {[%clk 01:15:25]} {[%emt 00:00:07]} Kf8 {[%clk
00:54:59]} {[%emt 00:00:28]} 71. Qf7# {[%emt 00:00:17]} 1-0

[Event "NJSK 2026 Jeugd C"]
[Site "Helmond, Netherlands"]
[Date "2026.04.29"]
[Round "7.12"]
[White "Uitermark, Imre"]
[Black "Bajnath, Dhanesh"]
[Result "1-0"]
[TimeControl "90min/40moves + 30sec/move"]
[WhiteTitle "-"]
[BlackTitle "-"]
[WhiteFideId "40105199"]
[BlackFideId "40104842"]
[WhiteElo "1957"]
[BlackElo "1889"]

1. e4 {[%clk 01:30:59]} e5 {[%clk 01:30:57]} {[%emt 00:00:04]} 2. Nf3 {[%clk
01:31:22]} {[%emt 00:00:06]} Nc6 {[%clk 01:31:14]} {[%emt 00:00:13]} 3. Bc4
{[%clk 01:31:39]} {[%emt 00:00:12]} Bc5 {[%clk 01:31:43]} {[%emt 00:00:02]} 4.
c3 {[%clk 01:31:56]} {[%emt 00:00:13]} Nf6 {[%clk 01:32:12]} {[%emt 00:00:01]}
5. d3 {[%clk 01:32:20]} {[%emt 00:00:06]} O-O {[%clk 01:32:28]} {[%emt
00:00:14]} 6. O-O {[%clk 01:32:39]} {[%emt 00:00:10]} d6 {[%clk 01:32:55]}
{[%emt 00:00:05]} 7. h3 {[%clk 01:32:27]} {[%emt 00:00:41]} h6 {[%clk
01:33:00]} {[%emt 00:00:25]} 8. Nbd2 {[%clk 01:32:46]} {[%emt 00:00:11]} Re8
{[%clk 01:32:47]} {[%emt 00:00:43]} 9. Re1 {[%clk 01:32:59]} {[%emt 00:00:18]}
Be6 {[%clk 01:32:27]} {[%emt 00:00:49]} 10. Bb5 {[%clk 01:33:25]} {[%emt
00:00:05]} a6 {[%clk 01:32:28]} {[%emt 00:00:29]} 11. Ba4 {[%clk 01:33:39]}
{[%emt 00:00:15]} b5 {[%clk 01:32:07]} {[%emt 00:00:51]} 12. Bc2 {[%clk
01:34:04]} {[%emt 00:00:05]} Rb8 {[%clk 01:29:56]} {[%emt 00:02:41]} 13. Nf1
{[%clk 01:34:22]} {[%emt 00:00:12]} Ba7 {[%clk 01:29:11]} {[%emt 00:01:15]} 14.
Ng3 {[%clk 01:32:55]} {[%emt 00:01:57]} Qd7 {[%clk 01:26:22]} {[%emt 00:03:20]}
15. d4 {[%clk 01:31:24]} {[%emt 00:02:00]} exd4 {[%clk 01:22:26]} {[%emt
00:04:27]} 16. cxd4 {[%clk 01:31:26]} {[%emt 00:00:27]} d5 {[%clk 01:22:13]}
{[%emt 00:00:43]} 17. e5 {[%clk 01:31:51]} {[%emt 00:00:05]} Nh7 {[%clk
01:22:07]} {[%emt 00:00:36]} 18. Be3 {[%clk 01:29:07]} {[%emt 00:03:13]} Ne7
{[%clk 01:01:25]} {[%emt 00:21:14]} 19. Rc1 {[%clk 01:26:00]} {[%emt 00:03:37]}
Bb6 {[%clk 00:52:45]} {[%emt 00:09:10]} 20. Qd2 {[%clk 01:24:21]} {[%emt
00:02:08]} Nf5 {[%clk 00:46:53]} {[%emt 00:06:22]} 21. Nxf5 {[%clk 01:14:46]}
{[%emt 00:10:06]} Bxf5 {[%clk 00:47:03]} {[%emt 00:00:21]} 22. Nh4 {[%clk
01:12:13]} {[%emt 00:03:03]} Bxc2 {[%clk 00:45:19]} {[%emt 00:02:13]} 23. Qxc2
{[%clk 01:11:47]} {[%emt 00:00:56]} Nf8 {[%clk 00:36:37]} {[%emt 00:09:12]} 24.
f4 {[%clk 01:08:16]} {[%emt 00:04:02]} Ne6 {[%clk 00:31:55]} {[%emt 00:05:11]}
25. Qf2 {[%clk 01:08:42]} {[%emt 00:00:03]} Ba5 {[%clk 00:24:11]} {[%emt
00:08:15]} 26. Rf1 {[%clk 01:06:36]} {[%emt 00:02:35]} Bb4 {[%clk 00:16:28]}
{[%emt 00:08:14]} 27. Qg3 {[%clk 01:03:31]} {[%emt 00:03:35]} c5 {[%clk
00:14:28]} {[%emt 00:02:30]} 28. f5 {[%clk 00:37:10]} {[%emt 00:26:51]} Nxd4
{[%clk 00:13:16]} {[%emt 00:01:41]} 29. Rf2 {[%clk 00:37:33]} {[%emt 00:00:07]}
Kh8 {[%clk 00:07:40]} {[%emt 00:06:07]} 30. a3 {[%clk 00:24:47]} {[%emt
00:13:16]} Ba5 {[%emt 00:01:26]} 31. f6 {[%clk 00:14:25]} {[%emt 00:10:51]} g5
{[%clk 00:05:21]} {[%emt 00:01:54]} 32. Bxd4 {[%clk 00:11:44]} {[%emt
00:03:11]} cxd4 {[%clk 00:05:38]} {[%emt 00:00:13]} 33. Nf5 {[%clk 00:10:59]}
{[%emt 00:01:15]} Bc7 {[%clk 00:02:20]} {[%emt 00:03:48]} 34. Qg4 {[%clk
00:07:43]} {[%emt 00:03:45]} Bd6 {[%clk 00:00:34]} {[%emt 00:02:17]} 35. exd6
{[%clk 00:07:24]} {[%emt 00:00:48]} Rbc8 {[%clk 00:00:38]} {[%emt 00:00:28]} 36.
Qh5 {[%clk 00:06:16]} {[%emt 00:01:37]} Rxc1+ {[%clk 00:00:57]} {[%emt
00:00:11]} 37. Kh2 {[%clk 00:06:44]} {[%emt 00:00:02]} Qxf5 {[%clk 00:00:37]}
{[%emt 00:00:50]} 38. Rxf5 {[%clk 00:07:08]} {[%emt 00:00:06]} 1-0

[Event "NJSK 2026 Jeugd C"]
[Site "Helmond, Netherlands"]
[Date "2026.04.29"]
[Round "7.13"]
[White "Nair, Pranav Prasobh"]
[Black "Ngangbam, Chingthang"]
[Result "1-0"]
[TimeControl "90min/40moves + 30sec/move"]
[WhiteTitle "-"]
[BlackTitle "-"]
[WhiteFideId "40109135"]
[BlackFideId "1086510"]
[WhiteElo "1747"]
[BlackElo "1937"]

1. e4 {[%clk 01:27:10]} {[%emt 00:03:50]} c5 {[%clk 01:30:53]} {[%emt
00:00:08]} 2. Nf3 {[%clk 01:27:33]} {[%emt 00:00:06]} d6 {[%clk 01:31:18]}
{[%emt 00:00:06]} 3. d4 {[%clk 01:27:54]} {[%emt 00:00:09]} cxd4 {[%clk
01:31:43]} {[%emt 00:00:05]} 4. Nxd4 {[%clk 01:28:17]} {[%emt 00:00:06]} Nf6
{[%clk 01:32:07]} {[%emt 00:00:06]} 5. Nc3 {[%clk 01:28:37]} {[%emt 00:00:10]}
Nc6 {[%clk 01:32:31]} {[%emt 00:00:06]} 6. f3 {[%clk 01:28:56]} {[%emt
00:00:12]} e5 {[%clk 01:32:56]} {[%emt 00:00:05]} 7. Nb3 {[%clk 01:29:19]}
{[%emt 00:00:07]} Be7 {[%clk 01:33:11]} {[%emt 00:00:15]} 8. Be3 {[%clk
01:29:28]} {[%emt 00:00:21]} Be6 {[%clk 01:33:23]} {[%emt 00:00:17]} 9. Qd2
{[%clk 01:29:50]} {[%emt 00:00:07]} a5 {[%clk 01:32:36]} {[%emt 00:01:18]} 10.
a4 {[%clk 01:29:09]} {[%emt 00:01:12]} O-O {[%clk 01:31:25]} {[%emt 00:01:40]}
11. Be2 {[%clk 01:26:54]} {[%emt 00:02:46]} Nb4 {[%clk 01:30:29]} {[%emt
00:01:26]} 12. O-O {[%clk 01:21:48]} {[%emt 00:05:35]} Rc8 {[%clk 01:29:09]}
{[%emt 00:01:51]} 13. Rac1 {[%clk 01:19:59]} {[%emt 00:02:19]} d5 {[%clk
01:23:27]} {[%emt 00:06:12]} 14. exd5 {[%clk 01:19:14]} {[%emt 00:01:15]} Nfxd5
{[%clk 01:23:46]} {[%emt 00:00:11]} 15. Nxd5 {[%clk 01:19:24]} {[%emt
00:00:20]} Nxd5 {[%clk 01:22:55]} {[%emt 00:01:21]} 16. Bd3 {[%clk 01:13:31]}
{[%emt 00:06:22]} Nxe3 {[%clk 01:20:08]} {[%emt 00:03:17]} 17. Qxe3 {[%clk
01:13:53]} {[%emt 00:00:08]} Bg5 {[%clk 01:17:04]} {[%emt 00:03:34]} 18. Qe4
{[%clk 01:13:19]} {[%emt 00:01:06]} f5 {[%clk 01:17:00]} {[%emt 00:00:33]} 19.
Qxe5 {[%clk 01:13:14]} {[%emt 00:00:35]} Bxb3 {[%clk 01:16:49]} {[%emt
00:00:42]} 20. f4 {[%clk 01:11:19]} {[%emt 00:02:24]} Bf6 {[%clk 01:16:55]}
{[%emt 00:00:24]} 21. Qb5 {[%clk 01:11:11]} {[%emt 00:00:39]} Qd4+ {[%clk
01:15:45]} {[%emt 00:01:41]} 22. Kh1 {[%clk 01:11:21]} {[%emt 00:00:18]} Bc4
{[%clk 01:16:05]} {[%emt 00:00:10]} 23. Bxc4+ {[%clk 01:10:28]} {[%emt
00:01:24]} Qxc4 {[%clk 01:15:51]} {[%emt 00:00:44]} 24. Qxb7 {[%clk 01:09:32]}
{[%emt 00:01:26]} Rb8 {[%clk 01:16:03]} {[%emt 00:00:18]} 25. Qd7 {[%clk
01:09:14]} {[%emt 00:00:47]} Rxb2 {[%clk 01:14:30]} {[%emt 00:02:04]} 26. Qxf5
{[%clk 01:09:16]} {[%emt 00:00:28]} Rc8 {[%clk 01:14:42]} {[%emt 00:00:18]} 27.
Rfe1 {[%clk 01:08:38]} {[%emt 00:01:08]} h6 {[%clk 01:12:50]} {[%emt 00:02:22]}
28. h3 {[%clk 01:02:03]} {[%emt 00:07:04]} Rxc2 {[%clk 01:12:11]} {[%emt
00:01:10]} 29. Rxc2 {[%clk 01:01:48]} {[%emt 00:00:44]} Qxc2 {[%clk 01:12:38]}
{[%emt 00:00:03]} 30. Re8+ {[%clk 01:01:42]} {[%emt 00:00:37]} Rxe8 {[%clk
01:09:17]} {[%emt 00:03:52]} 31. Qxc2 {[%clk 01:01:04]} {[%emt 00:01:07]} Bh4
{[%clk 01:04:01]} {[%emt 00:05:46]} 32. Kh2 {[%clk 00:59:41]} {[%emt 00:01:53]}
Re3 {[%clk 01:03:27]} {[%emt 00:01:04]} 33. g4 {[%clk 00:58:40]} {[%emt
00:01:31]} Be1 {[%clk 01:01:05]} {[%emt 00:02:52]} 34. f5 {[%clk 00:56:12]}
{[%emt 00:02:59]} Rf3 {[%clk 01:00:11]} {[%emt 00:01:23]} 35. Qc4+ {[%clk
00:55:27]} {[%emt 00:01:14]} Kh7 {[%clk 01:00:33]} {[%emt 00:00:08]} 36. Qe4
{[%clk 00:55:06]} {[%emt 00:00:51]} Rf1 {[%clk 00:59:28]} {[%emt 00:01:36]} 37.
f6+ {[%clk 00:55:04]} {[%emt 00:00:33]} Kg8 {[%clk 00:59:18]} {[%emt 00:00:39]}
38. Qc4+ {[%clk 00:55:23]} {[%emt 00:00:11]} 1-0

[Event "NJSK 2026 Jeugd C"]
[Site "Helmond, Netherlands"]
[Date "2026.04.29"]
[Round "7.14"]
[White "Tkacenko, Kostia"]
[Black "De Wit, Jim"]
[Result "0-1"]
[TimeControl "90min/40moves + 30sec/move"]
[WhiteTitle "-"]
[BlackTitle "-"]
[WhiteFideId "40120708"]
[BlackFideId "1097326"]
[WhiteElo "1552"]
[BlackElo "1749"]

1. e4 {[%clk 01:30:59]} c5 {[%clk 01:30:56]} {[%emt 00:00:05]} 2. Nf3 {[%clk
01:31:27]} {[%emt 00:00:02]} a6 {[%clk 01:31:20]} {[%emt 00:00:06]} 3. d4
{[%clk 01:30:36]} {[%emt 00:01:20]} cxd4 {[%clk 01:31:44]} {[%emt 00:00:07]} 4.
Nxd4 {[%clk 01:31:02]} {[%emt 00:00:04]} Nf6 {[%clk 01:32:10]} {[%emt
00:00:05]} 5. Nc3 {[%clk 01:31:14]} {[%emt 00:00:16]} e5 {[%clk 01:32:35]}
{[%emt 00:00:05]} 6. Nf3 {[%clk 01:31:16]} {[%emt 00:00:29]} Bb4 {[%clk
01:32:54]} {[%emt 00:00:10]} 7. Bd3 {[%clk 01:31:16]} {[%emt 00:00:30]} d5
{[%clk 01:32:39]} {[%emt 00:00:45]} 8. exd5 {[%clk 01:18:56]} {[%emt 00:12:49]}
Bxc3+ {[%clk 01:32:39]} {[%emt 00:00:31]} 9. bxc3 {[%clk 01:19:23]} {[%emt
00:00:04]} e4 {[%clk 01:32:40]} {[%emt 00:00:29]} 10. Qe2 {[%clk 01:19:07]}
{[%emt 00:01:13]} O-O {[%clk 01:32:45]} {[%emt 00:00:25]} 11. Bxe4 {[%clk
01:19:19]} {[%emt 00:00:18]} Nxe4 {[%clk 01:32:48]} {[%emt 00:00:28]} 12. Qxe4
{[%clk 01:19:19]} {[%emt 00:00:30]} Re8 {[%clk 01:33:07]} {[%emt 00:00:10]} 13.
Ne5 {[%clk 01:19:43]} {[%emt 00:00:07]} Nd7 {[%clk 01:32:43]} {[%emt 00:00:54]}
14. f4 {[%clk 01:17:57]} {[%emt 00:02:16]} f6 {[%clk 01:31:59]} {[%emt
00:01:14]} 15. O-O {[%clk 01:14:35]} {[%emt 00:03:52]} fxe5 {[%clk 01:32:08]}
{[%emt 00:00:21]} 16. fxe5 {[%clk 01:10:29]} {[%emt 00:04:36]} Rxe5 {[%clk
01:31:58]} {[%emt 00:00:39]} 17. Qd3 {[%clk 01:09:32]} {[%emt 00:01:28]} Nf6
{[%clk 01:31:34]} {[%emt 00:00:54]} 18. c4 {[%clk 01:09:24]} {[%emt 00:00:38]}
b5 {[%clk 01:29:41]} {[%emt 00:02:23]} 19. Bb2 {[%clk 01:08:47]} {[%emt
00:01:06]} bxc4 {[%clk 01:27:57]} {[%emt 00:02:14]} 20. Qxc4 {[%clk 01:09:12]}
{[%emt 00:00:05]} Qxd5 {[%clk 01:27:01]} {[%emt 00:01:26]} 21. Qxd5+ {[%clk
01:09:27]} {[%emt 00:00:15]} Rxd5 {[%clk 01:27:05]} {[%emt 00:00:26]} 22. Bxf6
{[%clk 01:09:20]} {[%emt 00:00:38]} gxf6 {[%clk 01:27:22]} {[%emt 00:00:13]} 23.
Rxf6 {[%clk 01:09:48]} {[%emt 00:00:02]} Rf5 {[%clk 01:27:15]} {[%emt
00:00:37]} 24. Rxf5 {[%clk 01:08:15]} {[%emt 00:02:03]} Bxf5 {[%clk 01:27:27]}
{[%emt 00:00:18]} 25. Rc1 {[%clk 01:08:43]} {[%emt 00:00:02]} Rc8 {[%clk
01:27:39]} {[%emt 00:00:18]} 26. c3 {[%clk 01:09:09]} {[%emt 00:00:05]} Be6
{[%clk 01:27:56]} {[%emt 00:00:12]} 27. a3 {[%clk 01:08:50]} {[%emt 00:00:49]}
Bc4 {[%clk 01:27:33]} {[%emt 00:00:54]} 28. Rb1 {[%clk 01:05:27]} {[%emt
00:03:53]} Bd5 {[%clk 01:23:24]} {[%emt 00:04:37]} 29. Rc1 {[%clk 01:04:05]}
{[%emt 00:01:53]} Rb8 {[%clk 01:23:16]} {[%emt 00:00:38]} 30. c4 {[%clk
01:03:39]} {[%emt 00:00:57]} Bc6 {[%clk 01:23:41]} {[%emt 00:00:05]} 31. Rd1
{[%clk 01:00:48]} {[%emt 00:03:20]} Rb2 {[%clk 01:20:49]} {[%emt 00:03:23]} 32.
Rd6 {[%clk 01:00:06]} {[%emt 00:01:11]} Rxg2+ {[%clk 01:15:01]} {[%emt
00:06:17]} 33. Kf1 {[%clk 01:00:35]} {[%emt 00:00:02]} Rg6 {[%clk 01:14:51]}
{[%emt 00:00:40]} 34. Rxg6+ {[%clk 01:00:18]} {[%emt 00:00:47]} hxg6 {[%clk
01:14:39]} {[%emt 00:00:42]} 35. Ke2 {[%clk 01:00:23]} {[%emt 00:00:25]} Kf7
{[%clk 01:14:39]} {[%emt 00:00:31]} 36. Ke3 {[%clk 01:00:37]} {[%emt 00:00:15]}
Ke6 {[%clk 01:14:57]} {[%emt 00:00:11]} 37. Kd4 {[%clk 01:00:21]} {[%emt
00:00:48]} Kd6 {[%clk 01:15:14]} {[%emt 00:00:12]} 38. c5+ {[%clk 01:00:12]}
{[%emt 00:00:38]} Ke6 {[%clk 01:15:26]} {[%emt 00:00:18]} 39. Kc4 {[%clk
01:00:15]} {[%emt 00:00:28]} a5 {[%clk 01:14:55]} {[%emt 00:01:01]} 40. Kd4
{[%clk 01:00:24]} {[%emt 00:00:20]} Kf5 {[%clk 01:15:09]} {[%emt 00:00:16]} 41.
h4 {[%clk 01:00:26]} {[%emt 00:00:29]} Ke6 {[%clk 01:15:26]} {[%emt 00:00:12]}
42. Kc4 {[%clk 01:00:38]} {[%emt 00:00:18]} Ke5 {[%clk 01:15:45]} {[%emt
00:00:10]} 43. Kd3 {[%clk 01:00:33]} {[%emt 00:00:36]} Kd5 {[%clk 01:15:52]}
{[%emt 00:00:23]} 44. Ke3 {[%clk 01:00:38]} {[%emt 00:00:25]} Kxc5 {[%clk
01:15:59]} {[%emt 00:00:23]} 45. Kf4 {[%clk 01:01:06]} {[%emt 00:00:03]} Kc4
{[%clk 01:16:17]} {[%emt 00:00:11]} 46. Kg5 {[%clk 01:01:34]} {[%emt 00:00:02]}
Be4 {[%clk 01:16:22]} {[%emt 00:00:25]} 47. h5 {[%clk 01:01:54]} {[%emt
00:00:10]} gxh5 {[%clk 01:16:35]} {[%emt 00:00:17]} 48. Kxh5 {[%clk 01:02:23]}
{[%emt 00:00:02]} Kb3 {[%clk 01:16:49]} {[%emt 00:00:15]} 49. Kg4 {[%clk
01:02:52]} {[%emt 00:00:02]} Kxa3 {[%clk 01:16:57]} {[%emt 00:00:22]} 50. Kf4
{[%clk 01:03:21]} Kb2 {[%clk 01:17:08]} {[%emt 00:00:20]} 51. Kxe4 {[%clk
01:03:43]} {[%emt 00:00:08]} a4 {[%clk 01:17:30]} {[%emt 00:00:08]} 52. Kd4
{[%emt 00:00:06]} 0-1